fUSD/lending_fUSD_20250219
["ID","MTS","AMOUNT","RATE_DAILY","PERIOD"]
[353708585,1739995438774,23900.0,0.00010165,2]
[353708586,1739995468424,250.0,0.00010168,2]
[353708587,1739995473738,224.77020944,0.00010484,2]
[353708588,1739995519114,1060.0,0.00010467,2]
[353708589,1739995540287,1060.0,9.944e-05,2]
[353708590,1739995590116,1105.38,0.00010115,2]
[353708591,1739995683477,2200.0,0.0001041,2]
[353708593,1739995780147,178.87,0.00010038,2]
[353708596,1739995823307,328.98,8.767e-05,2]
[353708622,1739995832290,-1584.58,0.00010535,2]
[353708624,1739995832300,-181.19,0.00010643,2]
[353708626,1739995832309,-300.0,0.00010683,2]
[353708628,1739995832319,-800.0,0.00010684,2]
[353708630,1739995832329,-2500.0,0.00010684,2]
[353708631,1739995832339,-150.0,0.00010742,2]
[353708632,1739995832348,-1500.1784,0.00010799,2]
[353708633,1739995832357,-12476.6351,0.00010799,2]
[353708634,1739995832367,-300.0,0.000108,3]
[353708635,1739995832376,-166.66,0.00010801,2]
[353708636,1739995832386,-150.0,0.00010878,2]
[353708637,1739995832395,-266.7769,0.00010879,2]
[353708638,1739995832404,-312.9035,0.00010879,2]
[353708639,1739995832414,-1861.449,0.00010879,2]
[353708640,1739995832423,-1397.1313,0.00010879,2]
[353708641,1739995832432,-1342.9371,0.00010879,2]
[353708642,1739995832441,-1567.8337,0.00010879,2]
[353708643,1739995832451,-1000.0,0.00010898,2]
[353708644,1739995832460,-724.2106,0.00010898,2]
[353708645,1739995832470,-494.27,0.00010899,2]
[353708646,1739995832479,-52826.8351,0.00010899,2]
[353708647,1739995832488,-2640.7122,0.00010899,2]
[353708648,1739995832498,-367.13410529,0.00010899,2]
[353708649,1739995832507,-600.0,0.000109,3]
[353708650,1739995832516,-880.1,0.000109,2]
[353708651,1739995832526,-1551.36,0.000109,2]
[353708652,1739995832536,-150.0,0.00010959,2]
[353708653,1739995832546,-1000.0,0.00010979,2]
[353708654,1739995832555,-36284.034,0.00010979,2]
[353708655,1739995832564,-738.3979,0.00010979,2]
[353708656,1739995832574,-2500.0,0.00010979,2]
[353708657,1739995832583,-85731.1268,0.00010979,2]
[353708658,1739995832592,-163.94247891,0.00010979,2]
[353708659,1739995832602,-1550.0,0.0001098,2]
[353708660,1739995832611,-5000.0,0.0001098,2]
[353708661,1739995832621,-316.5742938,0.00010999,2]
[353708662,1739995832630,-1060.0,0.00011018,2]
[353708663,1739995832640,-150.0,0.00011071,2]
[353708664,1739995832649,-150.0,0.00011071,2]
[353708665,1739995832659,-274.4678137,0.00011071,2]
[353708666,1739995832668,-150.0,0.00011071,2]
[353708667,1739995832677,-150.00000001,0.00011071,2]
[353708668,1739995832687,-150.0,0.00011071,2]
[353708669,1739995832696,-905.21,0.00011079,2]
[353708670,1739995832705,-500.0,0.00011079,2]
[353708671,1739995832715,-500.0,0.00011079,2]
[353708672,1739995832724,-500.0,0.00011079,2]
[353708674,1739995832733,-500.0,0.00011079,2]
[353708676,1739995832743,-500.0,0.00011079,2]
[353708678,1739995832752,-335.38,0.00011079,2]
[353708680,1739995832762,-500.0,0.00011079,2]
[353708682,1739995832771,-533.42,0.00011079,2]
[353708684,1739995832780,-500.0,0.00011079,2]
[353708686,1739995832790,-500.0,0.00011079,2]
[353708688,1739995832799,-547.91,0.00011079,2]
[353708690,1739995832808,-500.0,0.00011079,2]
[353708692,1739995832818,-500.0,0.00011079,2]
[353708694,1739995832827,-500.0,0.00011079,2]
[353708696,1739995832836,-500.0,0.00011079,2]
[353708698,1739995832845,-500.0,0.00011079,2]
[353708700,1739995832854,-500.0,0.00011079,2]
[353708702,1739995832863,-500.0,0.00011079,2]
[353708704,1739995832872,-500.0,0.00011079,2]
[353708706,1739995832881,-500.0,0.00011079,2]
[353708708,1739995832891,-500.0,0.00011079,2]
[353708710,1739995832899,-503.04734901,0.00011079,2]
[353708711,1739995832909,-500.0,0.00011079,2]
[353708713,1739995832920,-500.0,0.00011079,2]
[353708715,1739995832929,-500.0,0.00011079,2]
[353708717,1739995832938,-500.0,0.00011079,2]
[353708719,1739995832947,-500.0,0.00011079,2]
[353708721,1739995832957,-500.0,0.00011079,2]
[353708723,1739995832966,-512.20393647,0.00011079,2]
[353708725,1739995832975,-500.0,0.00011079,2]
[353708727,1739995832984,-500.0,0.00011079,2]
[353708729,1739995832994,-500.0,0.00011079,2]
[353708731,1739995833003,-500.0,0.00011079,2]
[353708733,1739995833012,-365.54,0.00011079,2]
[353708735,1739995833022,-500.0,0.00011079,2]
[353708737,1739995833032,-500.0,0.00011079,2]
[353708739,1739995833042,-505.76,0.00011079,2]
[353708741,1739995833052,-500.0,0.00011079,2]
[353708743,1739995833062,-161.92,0.00011079,2]
[353708745,1739995833075,-500.0,0.00011079,2]
[353708747,1739995833084,-435.22,0.00011079,2]
[353708749,1739995833093,-500.0,0.00011079,2]
[353708751,1739995833103,-500.0,0.00011079,2]
[353708753,1739995833113,-500.0,0.00011079,2]
[353708754,1739995833123,-500.0,0.00011079,2]
[353708756,1739995833132,-500.0,0.00011079,2]
[353708758,1739995833142,-500.0,0.00011079,2]
[353708760,1739995833151,-500.0,0.00011079,2]
[353708762,1739995833162,-542.61,0.00011079,2]
[353708764,1739995833172,-500.0,0.00011079,2]
[353708766,1739995833182,-500.0,0.00011079,2]
[353708768,1739995833191,-500.0,0.00011079,2]
[353708770,1739995833201,-500.0,0.00011079,2]
[353708772,1739995833210,-500.0,0.00011079,2]
[353708774,1739995833219,-500.0,0.00011079,2]
[353708776,1739995833229,-500.0,0.00011079,2]
[353708778,1739995833238,-500.0,0.00011079,2]
[353708780,1739995833248,-500.0,0.00011079,2]
[353708781,1739995833258,-500.0,0.00011079,2]
[353708783,1739995833268,-500.0,0.00011079,2]
[353708785,1739995833277,-500.0,0.00011079,2]
[353708787,1739995833287,-500.0,0.00011079,2]
[353708789,1739995833296,-500.0,0.00011079,2]
[353708791,1739995833305,-500.0,0.00011079,2]
[353708793,1739995833314,-556.58,0.00011079,2]
[353708795,1739995833324,-500.0,0.00011079,2]
[353708797,1739995833333,-500.0,0.00011079,2]
[353708799,1739995833342,-500.0,0.00011079,2]
[353708801,1739995833351,-500.0,0.00011079,2]
[353708803,1739995833361,-500.0,0.00011079,2]
[353708805,1739995833370,-500.0,0.00011079,2]
[353708807,1739995833379,-500.0,0.00011079,2]
[353708809,1739995833389,-500.0,0.00011079,2]
[353708811,1739995833398,-500.0,0.00011079,2]
[353708813,1739995833410,-500.0,0.00011079,2]
[353708815,1739995833420,-483.20158051,0.00011079,2]
[353708817,1739995833429,-500.0,0.00011079,2]
[353708819,1739995833439,-500.0,0.00011079,2]
[353708821,1739995833448,-326.71214826,0.00011079,2]
[353708823,1739995833457,-587.31,0.00011079,2]
[353708825,1739995833467,-500.0,0.00011079,2]
[353708827,1739995833476,-500.0,0.00011079,2]
[353708829,1739995833485,-500.0,0.00011079,2]
[353708831,1739995833495,-500.0,0.00011079,2]
[353708832,1739995833504,-500.0,0.00011079,2]
[353708834,1739995833514,-500.0,0.00011079,2]
[353708836,1739995833523,-585.71,0.00011079,2]
[353708838,1739995833532,-524.38,0.00011079,2]
[353708840,1739995833542,-500.0,0.00011079,2]
[353708842,1739995833551,-500.0,0.00011079,2]
[353708844,1739995833560,-500.0,0.00011079,2]
[353708846,1739995833570,-500.0,0.00011079,2]
[353708848,1739995833579,-499.997,0.00011079,2]
[353708850,1739995833589,-500.0,0.00011079,2]
[353708852,1739995833598,-314.97662,0.00011079,2]
[353708854,1739995833608,-500.0,0.00011079,2]
[353708856,1739995833617,-500.0,0.00011079,2]
[353708858,1739995833627,-500.0,0.00011079,2]
[353708860,1739995833637,-157.109847,0.00011079,2]
[353708862,1739995833646,-500.0,0.00011079,2]
[353708863,1739995833656,-500.0,0.00011079,2]
[353708864,1739995833665,-490.9,0.00011079,2]
[353708865,1739995833675,-500.0,0.00011079,2]
[353708866,1739995833685,-500.0,0.00011079,2]
[353708867,1739995833694,-500.0,0.00011079,2]
[353708868,1739995833704,-500.0,0.00011079,2]
[353708869,1739995833714,-500.0,0.00011079,2]
[353708870,1739995833724,-500.0,0.00011079,2]
[353708871,1739995833734,-500.0,0.00011079,2]
[353708872,1739995833745,-468.29234727,0.00011079,2]
[353708873,1739995833755,-500.0,0.00011079,2]
[353708874,1739995833766,-500.0,0.00011079,2]
[353708876,1739995833776,-500.0,0.00011079,2]
[353708877,1739995833785,-522.39,0.00011079,2]
[353708879,1739995833795,-500.0,0.00011079,2]
[353708881,1739995833805,-500.0,0.00011079,2]
[353708883,1739995833815,-230.212476,0.00011079,2]
[353708885,1739995833825,-500.0,0.00011079,2]
[353708887,1739995833834,-500.0,0.00011079,2]
[353708889,1739995833844,-500.0,0.00011079,2]
[353708891,1739995833853,-157.423366,0.00011079,2]
[353708893,1739995833863,-500.0,0.00011079,2]
[353708895,1739995833873,-500.0,0.00011079,2]
[353708897,1739995833883,-500.0,0.00011079,2]
[353708899,1739995833892,-500.0,0.00011079,2]
[353708901,1739995833904,-500.0,0.00011079,2]
[353708903,1739995833914,-500.0,0.00011079,2]
[353708905,1739995833924,-714.19,0.00011079,2]
[353708907,1739995833934,-500.0,0.00011079,2]
[353708909,1739995833944,-500.0,0.00011079,2]
[353708911,1739995833954,-500.0,0.00011079,2]
[353708912,1739995833963,-500.0,0.00011079,2]
[353708914,1739995833973,-500.0,0.00011079,2]
[353708916,1739995833983,-500.0,0.00011079,2]
[353708918,1739995833993,-500.0,0.00011079,2]
[353708920,1739995834002,-500.0,0.00011079,2]
[353708923,1739995834012,-500.0,0.00011079,2]
[353708924,1739995834021,-500.0,0.00011079,2]
[353708926,1739995834032,-500.0,0.00011079,2]
[353708928,1739995834042,-500.0,0.00011079,2]
[353708930,1739995834051,-500.0,0.00011079,2]
[353708932,1739995834060,-500.0,0.00011079,2]
[353708934,1739995834071,-500.0,0.00011079,2]
[353708936,1739995834083,-500.0,0.00011079,2]
[353708938,1739995834092,-500.0,0.00011079,2]
[353708940,1739995834102,-165.039927,0.00011079,2]
[353708942,1739995834112,-500.0,0.00011079,2]
[353708944,1739995834123,-500.0,0.00011079,2]
[353708946,1739995834132,-500.0,0.00011079,2]
[353708948,1739995834142,-563.2,0.00011079,2]
[353708950,1739995834152,-245.26611865,0.00011079,2]
[353708952,1739995834163,-500.0,0.00011079,2]
[353708954,1739995834172,-500.0,0.00011079,2]
[353708956,1739995834181,-500.0,0.00011079,2]
[353708958,1739995834192,-500.0,0.00011079,2]
[353708960,1739995834201,-500.0,0.00011079,2]
[353708962,1739995834210,-500.0,0.00011079,2]
[353708964,1739995834219,-500.0,0.00011079,2]
[353708966,1739995834228,-500.0,0.00011079,2]
[353708968,1739995834239,-500.0,0.00011079,2]
[353708970,1739995834249,-500.0,0.00011079,2]
[353708972,1739995834258,-500.0,0.00011079,2]
[353708974,1739995834267,-500.0,0.00011079,2]
[353708976,1739995834276,-535.14,0.00011079,2]
[353708978,1739995834286,-500.0,0.00011079,2]
[353708980,1739995834295,-500.0,0.00011079,2]
[353708982,1739995834304,-500.0,0.00011079,2]
[353708983,1739995834313,-500.0,0.00011079,2]
[353708985,1739995834323,-500.0,0.00011079,2]
[353708987,1739995834333,-500.0,0.00011079,2]
[353708989,1739995834344,-500.0,0.00011079,2]
[353708991,1739995834353,-500.0,0.00011079,2]
[353708994,1739995834363,-642.82670003,0.00011079,2]
[353708995,1739995834372,-500.0,0.00011079,2]
[353708997,1739995834381,-500.0,0.00011079,2]
[353708999,1739995834391,-500.0,0.00011079,2]
[353709001,1739995834402,-500.0,0.00011079,2]
[353709003,1739995834412,-500.0,0.00011079,2]
[353709006,1739995834422,-500.0,0.00011079,2]
[353709007,1739995834432,-500.0,0.00011079,2]
[353709010,1739995834442,-500.0,0.00011079,2]
[353709011,1739995834452,-500.0,0.00011079,2]
[353709013,1739995834461,-500.0,0.00011079,2]
[353709015,1739995834471,-500.0,0.00011079,2]
[353709017,1739995834481,-500.0,0.00011079,2]
[353709019,1739995834491,-500.0,0.00011079,2]
[353709021,1739995834500,-500.0,0.00011079,2]
[353709023,1739995834510,-500.0,0.00011079,2]
[353709025,1739995834519,-500.0,0.00011079,2]
[353709027,1739995834529,-500.0,0.00011079,2]
[353709029,1739995834540,-500.0,0.00011079,2]
[353709031,1739995834550,-500.0,0.00011079,2]
[353709033,1739995834559,-500.0,0.00011079,2]
[353709035,1739995834569,-500.0,0.00011079,2]
[353709037,1739995834579,-237.263125,0.00011079,2]
[353709039,1739995834588,-500.66772413,0.00011079,2]
[353709041,1739995834598,-500.0,0.00011079,2]
[353709043,1739995834607,-500.0,0.00011079,2]
[353709045,1739995834617,-500.0,0.00011079,2]
[353709047,1739995834626,-500.0,0.00011079,2]
[353709049,1739995834636,-500.0,0.00011079,2]
[353709051,1739995834646,-753.12,0.00011079,2]
[353709053,1739995834656,-500.0,0.00011079,2]
[353709055,1739995834666,-500.0,0.00011079,2]
[353709057,1739995834676,-500.0,0.00011079,2]
[353709059,1739995834685,-500.0,0.00011079,2]
[353709061,1739995834696,-500.0,0.00011079,2]
[353709063,1739995834705,-500.0,0.00011079,2]
[353709065,1739995834715,-500.0,0.00011079,2]
[353709067,1739995834724,-503.02623197,0.00011079,2]
[353709069,1739995834733,-500.0,0.00011079,2]
[353709071,1739995834743,-500.0,0.00011079,2]
[353709073,1739995834753,-500.0,0.00011079,2]
[353709075,1739995834763,-502.51348251,0.00011079,2]
[353709077,1739995834772,-500.0,0.00011079,2]
[353709079,1739995834781,-1172.61,0.00011079,2]
[353709081,1739995834791,-500.0,0.00011079,2]
[353709083,1739995834799,-500.0,0.00011079,2]
[353709085,1739995834809,-898.96,0.00011079,2]
[353709087,1739995834818,-537.66,0.00011079,2]
[353709088,1739995834827,-500.0,0.00011079,2]
[353709090,1739995834836,-500.0,0.00011079,2]
[353709092,1739995834846,-500.0,0.00011079,2]
[353709094,1739995834855,-523.67620465,0.00011079,2]
[353709096,1739995834864,-500.0,0.00011079,2]
[353709098,1739995834874,-500.0,0.00011079,2]
[353709100,1739995834882,-500.0,0.00011079,2]
[353709102,1739995834892,-500.0,0.00011079,2]
[353709104,1739995834902,-500.0,0.00011079,2]
[353709127,1739995835114,-879.09,0.00011079,2]
[353709129,1739995835125,-505.25493776,0.00011079,2]
[353709131,1739995835135,-514.81976482,0.00011079,2]
[353709133,1739995835145,-500.0,0.00011079,2]
[353709135,1739995835156,-737.96,0.00011079,2]
[353709137,1739995835166,-500.0,0.00011079,2]
[353709139,1739995835175,-500.0,0.00011079,2]
[353709141,1739995835185,-508.60816115,0.00011079,2]
[353709143,1739995835195,-500.0,0.00011079,2]
[353709145,1739995835205,-500.0,0.00011079,2]
[353709147,1739995835214,-500.0,0.00011079,2]
[353709150,1739995835224,-500.0,0.00011079,2]
[353709152,1739995835234,-500.0,0.00011079,2]
[353709154,1739995835243,-490.76,0.00011079,2]
[353709155,1739995835252,-500.0,0.00011079,2]
[353709158,1739995835261,-500.0,0.00011079,2]
[353709159,1739995835271,-537.91712387,0.00011079,2]
[353709162,1739995835281,-538.45,0.00011079,2]
[353709164,1739995835291,-500.0,0.00011079,2]
[353709166,1739995835300,-962.32,0.00011079,2]
[353709167,1739995835310,-500.0,0.00011079,2]
[353709170,1739995835320,-500.0,0.00011079,2]
[353709171,1739995835331,-500.0,0.00011079,2]
[353709173,1739995835341,-509.59,0.00011079,2]
[353709176,1739995835350,-500.0,0.00011079,2]
[353709178,1739995835360,-500.0,0.00011079,2]
[353709180,1739995835370,-500.0,0.00011079,2]
[353709182,1739995835380,-500.0,0.00011079,2]
[353709184,1739995835390,-500.0,0.00011079,2]
[353709185,1739995835399,-500.0,0.00011079,2]
[353709187,1739995835410,-520.2967497,0.00011079,2]
[353709189,1739995835419,-500.0,0.00011079,2]
[353709192,1739995835429,-500.0,0.00011079,2]
[353709193,1739995835439,-500.0,0.00011079,2]
[353709195,1739995835449,-500.0,0.00011079,2]
[353709197,1739995835459,-500.0,0.00011079,2]
[353709199,1739995835468,-546.67,0.00011079,2]
[353709201,1739995835478,-840.65,0.00011079,2]
[353709204,1739995835488,-500.0,0.00011079,2]
[353709205,1739995835498,-500.0,0.00011079,2]
[353709207,1739995835507,-500.0,0.00011079,2]
[353709210,1739995835517,-500.0,0.00011079,2]
[353709212,1739995835527,-500.0,0.00011079,2]
[353709213,1739995835536,-500.0,0.00011079,2]
[353709216,1739995835546,-1437.42,0.00011079,2]
[353709218,1739995835558,-1356.54,0.00011079,2]
[353709219,1739995835568,-500.0,0.00011079,2]
[353709222,1739995835577,-500.0,0.00011079,2]
[353709223,1739995835587,-500.0,0.00011079,2]
[353709225,1739995835597,-500.0,0.00011079,2]
[353709227,1739995835606,-500.0,0.00011079,2]
[353709230,1739995835616,-504.18718648,0.00011079,2]
[353709231,1739995835625,-500.0,0.00011079,2]
[353709233,1739995835634,-504.52476255,0.00011079,2]
[353709235,1739995835644,-500.0,0.00011079,2]
[353709237,1739995835654,-500.0,0.00011079,2]
[353709239,1739995835663,-500.0,0.00011079,2]
[353709241,1739995835672,-500.0,0.00011079,2]
[353709244,1739995835683,-500.0,0.00011079,2]
[353709246,1739995835692,-785.45,0.00011079,2]
[353709247,1739995835701,-500.0,0.00011079,2]
[353709250,1739995835711,-500.0,0.00011079,2]
[353709252,1739995835720,-500.0,0.00011079,2]
[353709254,1739995835730,-500.0,0.00011079,2]
[353709256,1739995835739,-500.0,0.00011079,2]
[353709257,1739995835749,-500.0,0.00011079,2]
[353709259,1739995835759,-1209.73,0.00011079,2]
[353709262,1739995835769,-500.0,0.00011079,2]
[353709264,1739995835779,-500.0,0.00011079,2]
[353709265,1739995835789,-500.0,0.00011079,2]
[353709267,1739995835798,-690.95,0.00011079,2]
[353709269,1739995835807,-267.133277,0.00011079,2]
[353709271,1739995835817,-500.0,0.00011079,2]
[353709273,1739995835827,-500.0,0.00011079,2]
[353709275,1739995835836,-1489.16,0.00011079,2]
[353709277,1739995835846,-500.0,0.00011079,2]
[353709279,1739995835857,-500.0,0.00011079,2]
[353709281,1739995835867,-500.0,0.00011079,2]
[353709284,1739995835881,-807.67,0.00011079,2]
[353709286,1739995835891,-1423.58,0.00011079,2]
[353709288,1739995835901,-500.0,0.00011079,2]
[353709290,1739995835910,-843.14,0.00011079,2]
[353709291,1739995835920,-500.0,0.00011079,2]
[353709293,1739995835929,-500.0,0.00011079,2]
[353709295,1739995835938,-500.0,0.00011079,2]
[353709296,1739995835948,-198.268447,0.00011079,2]
[353709297,1739995835958,-500.0,0.00011079,2]
[353709298,1739995835967,-677.57,0.00011079,2]
[353709299,1739995835977,-477.46970867,0.00011079,2]
[353709300,1739995835987,-500.0,0.00011079,2]
[353709301,1739995835997,-500.0,0.00011079,2]
[353709302,1739995836006,-945.16,0.00011079,2]
[353709303,1739995836016,-500.0,0.00011079,2]
[353709305,1739995836026,-3452.77,0.00011079,2]
[353709306,1739995836035,-500.0,0.00011079,2]
[353709308,1739995836045,-500.0,0.00011079,2]
[353709310,1739995836055,-752.33,0.00011079,2]
[353709312,1739995836065,-500.0,0.00011079,2]
[353709314,1739995836078,-500.0,0.00011079,2]
[353709316,1739995836088,-815.95,0.00011079,2]
[353709318,1739995836097,-500.0,0.00011079,2]
[353709320,1739995836107,-500.0,0.00011079,2]
[353709322,1739995836118,-932.21,0.00011079,2]
[353709324,1739995836128,-500.0,0.00011079,2]
[353709326,1739995836138,-500.0,0.00011079,2]
[353709328,1739995836148,-626.91,0.00011079,2]
[353709330,1739995836159,-662.97,0.00011079,2]
[353709332,1739995836170,-500.0,0.00011079,2]
[353709334,1739995836180,-245.59870792,0.00011079,2]
[353709335,1739995836231,-542.08129208,0.00011079,2]
[353709336,1739995836241,-1571.8,0.00011079,2]
[353709337,1739995836251,-643.58,0.00011079,2]
[353709338,1739995836260,-740.58,0.00011079,2]
[353709339,1739995836270,-500.0,0.00011079,2]
[353709340,1739995836280,-737.13,0.00011079,2]
[353709341,1739995836290,-500.0,0.00011079,2]
[353709342,1739995836300,-246.63616112,0.00011079,2]
[353709343,1739995836312,-337.75383888,0.00011079,2]
[353709344,1739995836321,-562.24616112,0.00011079,2]
[353709346,1739995836333,-153.72383888,0.00011079,2]
[353709348,1739995836343,-734.84,0.00011079,2]
[353709350,1739995836352,-267.72104577,0.00011079,2]
[353709352,1739995836364,-429.94895423,0.00011079,2]
[353709354,1739995836373,-802.39,0.00011079,2]
[353709356,1739995836383,-756.21,0.00011079,2]
[353709358,1739995836392,-500.0,0.00011079,2]
[353709360,1739995836403,-500.0,0.00011079,2]
[353709362,1739995836412,-500.0,0.00011079,2]
[353709364,1739995836421,-500.0,0.00011079,2]
[353709366,1739995836430,-500.0,0.00011079,2]
[353709368,1739995836440,-500.0,0.00011079,2]
[353709370,1739995836450,-267.133275,0.00011079,2]
[353709372,1739995836459,-937.95,0.00011079,2]
[353709374,1739995836469,-716.59,0.00011079,2]
[353709376,1739995836479,-588.54,0.00011079,2]
[353709378,1739995836489,-500.0,0.00011079,2]
[353709380,1739995836499,-1087.14,0.00011079,2]
[353709382,1739995836508,-615.01,0.00011079,2]
[353709384,1739995836519,-500.0,0.00011079,2]
[353709386,1739995836529,-219.04,0.00011079,2]
[353709388,1739995836539,-1762.82,0.00011079,2]
[353709390,1739995836548,-743.19,0.00011079,2]
[353709392,1739995836558,-1029.99,0.00011079,2]
[353709394,1739995836569,-500.0,0.00011079,2]
[353709396,1739995836578,-963.52,0.00011079,2]
[353709398,1739995836587,-500.0,0.00011079,2]
[353709400,1739995836597,-1039.67,0.00011079,2]
[353709402,1739995836607,-500.0,0.00011079,2]
[353709404,1739995836616,-500.0,0.00011079,2]
[353709406,1739995836625,-500.0,0.00011079,2]
[353709408,1739995836634,-500.0,0.00011079,2]
[353709410,1739995836644,-500.0,0.00011079,2]
[353709412,1739995836654,-500.0,0.00011079,2]
[353709414,1739995836663,-1014.84,0.00011079,2]
[353709416,1739995836674,-898.51,0.00011079,2]
[353709418,1739995836684,-1434.81,0.00011079,2]
[353709420,1739995836694,-500.0,0.00011079,2]
[353709422,1739995836703,-500.0,0.00011079,2]
[353709424,1739995836713,-802.62,0.00011079,2]
[353709426,1739995836723,-1157.13,0.00011079,2]
[353709428,1739995836733,-171.24,0.00011079,2]
[353709430,1739995836742,-1176.33,0.00011079,2]
[353709432,1739995836752,-1126.62,0.00011079,2]
[353709434,1739995836761,-588.95,0.00011079,2]
[353709436,1739995836771,-500.0,0.00011079,2]
[353709438,1739995836780,-580.81,0.00011079,2]
[353709440,1739995836790,-500.0,0.00011079,2]
[353709442,1739995836799,-500.0,0.00011079,2]
[353709443,1739995836808,-865.56,0.00011079,2]
[353709444,1739995836818,-500.0,0.00011079,2]
[353709445,1739995836827,-1010.38,0.00011079,2]
[353709446,1739995836836,-388.45,0.00011079,2]
[353709447,1739995836846,-500.0,0.00011079,2]
[353709448,1739995836855,-267.133275,0.00011079,2]
[353709449,1739995836864,-692.91,0.00011079,2]
[353709450,1739995836874,-500.0,0.00011079,2]
[353709451,1739995836884,-500.0,0.00011079,2]
[353709452,1739995836894,-500.0,0.00011079,2]
[353709453,1739995836903,-500.0,0.00011079,2]
[353709454,1739995836912,-704.62,0.00011079,2]
[353709455,1739995836922,-249.77,0.00011079,2]
[353709456,1739995836932,-500.0,0.00011079,2]
[353709457,1739995836941,-500.0,0.00011079,2]
[353709458,1739995836951,-237.263124,0.00011079,2]
[353709459,1739995836960,-183.62,0.00011079,2]
[353709460,1739995836970,-1732.65,0.00011079,2]
[353709461,1739995836980,-500.0,0.00011079,2]
[353709462,1739995836989,-500.0,0.00011079,2]
[353709463,1739995836999,-500.0,0.00011079,2]
[353709464,1739995837009,-500.0,0.00011079,2]
[353709465,1739995837018,-500.0,0.00011079,2]
[353709466,1739995837028,-920.03,0.00011079,2]
[353709467,1739995837038,-500.0,0.00011079,2]
[353709468,1739995837047,-601.71,0.00011079,2]
[353709469,1739995837056,-581.74,0.00011079,2]
[353709470,1739995837066,-588.31,0.00011079,2]
[353709471,1739995837077,-500.0,0.00011079,2]
[353709472,1739995837086,-500.0,0.00011079,2]
[353709473,1739995837095,-500.0,0.00011079,2]
[353709474,1739995837105,-597.73,0.00011079,2]
[353709475,1739995837115,-500.0,0.00011079,2]
[353709476,1739995837124,-553.99,0.00011079,2]
[353709477,1739995837133,-535.64,0.00011079,2]
[353709478,1739995837143,-500.0,0.00011079,2]
[353709479,1739995837154,-210.54,0.00011079,2]
[353709480,1739995837163,-225.85,0.00011079,2]
[353709481,1739995837173,-417.54,0.0001108,2]
[353709482,1739995837183,-315.71,0.0001108,2]
[353709483,1739995837192,-8.9643225,0.0001108,2]
[353709484,1739995837204,-491.0356775,0.0001108,2]
[353709485,1739995837214,-500.0,0.0001108,2]
[353709486,1739995837223,-241.42512862,0.0001108,2]
[353709487,1739995837233,-304.82,0.0001108,2]
[353709488,1739995837243,-500.0,0.0001108,2]
[353709489,1739995837252,-456.1,0.0001108,2]
[353709490,1739995837262,-508.42776441,0.0001108,2]
[353709491,1739995837271,-500.0,0.0001108,2]
[353709492,1739995837281,-274.42,0.0001108,2]